Cogmind - Beta 13 @@@ ROGUE MODE // 2024.03.31 @ 17:58:36 Player: CONM Result: Destroyed by Y-45 Defender with Beam Rifle Performance ------------- Evolutions (1) 500 Regions Visited (2) 400 Robots Destroyed (11) 55 Value Destroyed (298) 298 Prototype IDs (0) 0 Alien Tech Used (0) 0 Bonus (0) 0 TOTAL SCORE: 1253 Bonus ------- None Cogmind --------- Core Integrity 0/400 Matter 102/300 Energy 100/100 System Corruption 0% Temperature Cool (9) Movement Core (1400) Ox27 Location -9/Materials Parts ------- > --- POWER (1) -------- (None) > --- PROPULSION (4) --- (None) > --- UTILITY (2) ------ Huge Storage Unit > --- WEAPON (2) ------- Flail > --- INVENTORY (25) --- Light Ion Engine Light Treads Light Treads Aluminum Leg Large Matter Pod (0) Targeting Computer Light Armor Plating Peak State ------------ > --- POWER ------------ Ion Engine > --- PROPULSION ------- Wheel Wheel > --- UTILITY ---------- Huge Storage Unit Light Armor Plating > --- WEAPON ----------- Mining Laser Flail > --- INVENTORY -------- Light Ion Engine Light Treads Light Treads Aluminum Leg Large Matter Pod Targeting Computer Light Armor Plating [Rating: 8] Favorites ----------- Power Ion Engine Engine Ion Engine Propulsion Light Treads Treads Light Treads Wheel Wheel Utility Sensor Array Device Sensor Array Storage Huge Storage Unit Protection Light Armor Plating Weapon Grenade Launcher Launcher Grenade Launcher Special Weapon Mining Laser Impact Weapon Flail Build | -11 -10 -9 ------- Run | Yrd Mat Mat Slots Evolved 2 | . . 2 Power . | . . . Propulsion 2 | . . 2 Utility . | . . . Weapon . | . . . Parts Attached 14 | . 12 2 Power 2 | . 2 . Engine 2 | . 2 . Core . | . . . Reactor . | . . . Propulsion 4 | . 4 . Treads 2 | . 2 . Leg . | . . . Wheel 2 | . 2 . Hover . | . . . Flight . | . . . Utility 5 | . 5 . Device 1 | . 1 . Storage 3 | . 3 . Processor . | . . . Hackware . | . . . Protection 1 | . 1 . Artifact . | . . . Weapon 3 | . 1 2 Energy Gun . | . . . Energy Cannon . | . . . Ballistic Gun . | . . . Ballistic Cannon . | . . . Launcher 1 | . 1 . Special Weapon 1 | . . 1 Impact Weapon 1 | . . 1 Slashing Weapon . | . . . Piercing Weapon . | . . . Special Melee Weapon . | . . . Unidentified Prototypes . | . . . Parts Lost 7 | . 2 5 Power 1 | . . 1 Propulsion 2 | . . 2 Utility 2 | . 1 1 Weapon 2 | . 1 1 Highest Loss Streak 5 | . 2 5 To Critical Strikes . | . . . Average Slot Usage (%) 76 | . 80 55 Engine 10 | . 12 4 Treads 22 | . 27 . Wheel 3 | . . 17 Device 9 | . 11 . Storage 13 | . 14 11 Protection 1 | . . 8 Launcher 11 | . 13 . Impact Weapon 1 | . . 9 Naked Turns . | . . . Heaviest Build 91 | . 89 91 Greatest Support 40 | 3 40 20 Greatest Overweight (x) 8 | . 4 8 Average Overweight (x) . | . . 4 Largest Inventory Capacity 25 | 5 25 25 Average Capacity 16 | 5 14 25 Most Carried 9 | 3 7 9 Average Carried 3 | 2 2 7 Final Capacity 25 | 5 25 25 Final Carried 7 | 3 7 7 Class Distribution -------------------- 100% | Mutant Dominant Class ---------------- Mutant | -10/Materials Mutant | -9/Materials Resources | -11 -10 -9 ----------- Run | Yrd Mat Mat Matter Collected 277 | 200 77 . Remotely . | . . . Salvage Created 152 | . 110 42 Parts 12 | . 12 . Haulers Intercepted . | . . . Recyclers Shooed . | . . . Parts Field Recycled . | . . . Retrieved Matter . | . . . Parts Self-Destructed . | . . . Prevented . | . . . Kills | -11 -10 -9 ------- Run | Yrd Mat Mat Combat Hostiles Destroyed 6 | . 4 2 Cannons 1 | . . 1 AOE 4 | . 4 . Classes Destroyed 4 | . 4 . Builder 2 | . 2 . Operator 1 | . 1 . Watcher 2 | . 2 . Grunt 6 | . 4 2 Best Kill Streak 4 | . 4 1 Combat Bots Only 2 | . 2 1 Max Kills in Single Turn 2 | . 2 1 Gunslinging . | . . . Exploded 2 | . 2 . Melee . | . . . Uniques/NPCs Destroyed . | . . . Combat | -11 -10 -9 -------- Run | Yrd Mat Mat Hostile Shots Fired 90 | . 17 73 Missed 14 | . 3 11 Damage Taken 1250 | . 391 859 Core 530 | . 117 413 Absorbed by Shields . | . . . Core Remaining (%) 76 | 100 53 . Volleys Fired 21 | . 17 4 Largest 1 | . 1 1 Hottest 100 | . 30 100 Shots Fired 21 | . 17 4 Gun . | . . . Cannon . | . . . Launcher 17 | . 17 . Special 4 | . . 4 Kinetic . | . . . Thermal 4 | . . 4 Explosive 17 | . 17 . Electromagnetic . | . . . Robot Hit Streak 10 | . 9 10 Robot Miss Streak 2 | . 2 2 Penetration Max . | . . . Secondary Targets . | . . . Shots Hit Robots 20 | . 13 7 Core Hits 13 | . 11 2 Critical Kills . | . . . Critical Parts Destroyed . | . . . Critical Strikes . | . . . Melee Attacks 11 | . . 11 Impact 11 | . . 11 Slashing . | . . . Piercing . | . . . Sneak Attacks . | . . . Combat Hostiles . | . . . Follow-up Attacks . | . . . Damage Inflicted 961 | . 754 207 Guns . | . . . Cannons . | . . . Explosions 754 | . 754 . Melee 159 | . . 159 Ramming . | . . . Kinetic . | . . . Thermal 48 | . . 48 Explosive 754 | . 754 . Electromagnetic . | . . . Impact 159 | . . 159 Slashing . | . . . Piercing . | . . . Highest Corruption . | . . . Average Corruption . | . . . Corruption Purged . | . . . Corruption Blocked . | . . . Overload Shots . | . . . Overflow Damage 74 | . 43 31 Projectiles . | . . . Explosions 43 | . 43 . Melee 31 | . . 31 Knockbacks 3 | . . 3 Impact 3 | . . 3 Kinetic . | . . . Secondary . | . . . Self-Inflicted Damage 229 | . 229 . Shots 7 | . 7 . Rammed . | . . . Targets Rammed . | . . . Kicked . | . . . Crushed . | . . . Highest Temperature 102 | . 4 102 Average Temperature 43 | . 2 50 Received Heat Transfer 549 | . 90 459 Siege Activations . | . . . Robots Corrupted . | . . . Combat Hostiles . | . . . Parts Fried 1 | . . 1 Impact Corruptions 1 | . . 1 Robots Melted . | . . . Combat Hostiles . | . . . Parts Melted . | . . . Heat Transferred 100 | . . 100 Parts Sabotaged . | . . . Parts Stolen . | . . . Parts Stripped . | . . . Power Chain Reactions . | . . . Alert | -11 -10 -9 ------- Run | Yrd Mat Mat Peak Influence 161 | . 161 70 Initial 27 | . . 27 Average 53 | . 57 37 Maximum Alert Level . | . . . Low Security (%) 100 | 100 100 100 Level 1 . | . . . Level 2 . | . . . Level 3 . | . . . Level 4 . | . . . Level 5 . | . . . High Security . | . . . Max Security . | . . . Squads Dispatched . | . . . Investigation . | . . . Extermination . | . . . Reinforcement . | . . . Assault . | . . . Garrison . | . . . Intercept . | . . . Searches Triggered . | . . . Construction Impeded . | . . . Haulers Reinforced . | . . . Active Scanning Responses . | . . . Cargo Convoy Interrupts . | . . . Stealth | -11 -10 -9 --------- Run | Yrd Mat Mat Distress Signals . | . . . Communications Jammed . | . . . Distress Signals . | . . . Times Spotted 16 | . 7 9 Peak Tracking Total 7 | . 2 7 Tactical Retreats 1 | . . 1 Traps | -11 -10 -9 ------- Run | Yrd Mat Mat Traps Triggered . | . . . Indirectly . | . . . Trap Hack Attempts . | . . . Triggered . | . . . Disarmed . | . . . Reprogrammed . | . . . Reused . | . . . Traps Extracted . | . . . Installed . | . . . Triggered . | . . . Machines | -11 -10 -9 ---------- Run | Yrd Mat Mat Machines Disabled 1 | . 1 . Max in Single Turn 1 | . 1 . Machines Repaired . | . . . Machines Dismantled . | . . . Machines Sabotaged . | . . . Overloaded Fab Kills . | . . . Hacking | -11 -10 -9 --------- Run | Yrd Mat Mat Machines Accessed 1 | . 1 . Terminals 1 | . 1 . Fabricators . | . . . Repair Stations . | . . . Recycling Units . | . . . Scanalyzers . | . . . Garrison Access . | . . . Total Hacks 2 | . 2 . Successful 1 | . 1 . Failed 1 | . 1 . Catastrophic . | . . . Database Lockouts . | . . . Manual . | . . . Terminals 2 | . 2 . Fabricators . | . . . Repair Stations . | . . . Recycling Units . | . . . Scanalyzers . | . . . Garrison Access . | . . . Terminal Hacks 1 | . 1 . Robot Analysis 1 | . 1 . Fabricator Hacks . | . . . Repair Station Hacks . | . . . Recycling Unit Hacks . | . . . Scanalyzer . | . . . Garrison Access Hacks . | . . . Unauthorized Hacks . | . . . Terminals . | . . . Fabricators . | . . . Repair Stations . | . . . Recycling Units . | . . . Scanalyzers . | . . . Garrison Access . | . . . Data Cores Recovered 1 | . 1 . Used . | . . . Hacking Detections 1 | . 1 . Full Trace Events . | . . . Feedback Events . | . . . Feedback Blocked . | . . . Robot Schematics Acquired . | . . . Robots Built . | . . . Authchips . | . . . Time . | . . . Total Robot Build Rating . | . . . Part Schematics Acquired . | . . . Parts Built . | . . . Authchips . | . . . Time . | . . . Total Part Build Rating . | . . . Parts Repaired . | . . . Time . | . . . Parts Recycled . | . . . Recycled Matter . | . . . Retrieved Matter . | . . . Retrieved Components . | . . . Parts Scanalyzed . | . . . Part Schematics Acquired . | . . . Parts Damaged . | . . . Bothacking | -11 -10 -9 ------------ Run | Yrd Mat Mat Used RIF Installer . | . . . Robots Hacked . | . . . Non-combat . | . . . Combat . | . . . Robot Hacks Applied . | . . . Relay Couplers Released . | . . . Fabnet Peak Effective % . | . . . Robots Rewired . | . . . Allies Hacked . | . . . Hacks Repelled . | . . . Allies | -11 -10 -9 -------- Run | Yrd Mat Mat Total Allies . | . . . Largest Group . | . . . Highest-Rated Group . | . . . Highest-Rated Ally . | . . . Total Orders . | . . . Ally Attacks . | . . . Total Damage . | . . . Kills . | . . . Allies Corrupted . | . . . Allies Melted . | . . . Intel | -11 -10 -9 ------- Run | Yrd Mat Mat Robot Analysis Total 1 | . 1 . Derelict Logs Recovered . | . . . Drone Launches . | . . . Drone Recoveries . | . . . Exploration | -11 -10 -9 ------------- Run | Yrd Mat Mat Turns Passed 911 | 20 747 144 Spaces Moved 432 | 34 347 51 Core 34 | 34 . . Treads 335 | . 335 . Legs . | . . . Wheels 63 | . 12 51 Hover . | . . . Flight . | . . . Fastest Speed 50 | 50 140 140 Average Speed 176 | 50 193 143 Slowest Speed 320 | 50 320 200 Overloaded Moves . | . . . Propulsion Burnouts . | . . . Robots Hopped . | . . . Cave-ins Triggered . | . . . Exploration Rate (%) 17 | 4 39 9 Regions Visited 2 Branch Regions . Pre-discovered Areas . | . . . Known Exits Taken . | . . . Unknown Exits Taken 2 | 1 1 . Scrap Searched . | . . . Spaces Dug 2 | . . 2 Terrain Destroyed 158 | . 155 3 Melee 2 | . . 2 Projectile 1 | . . 1 AOE 155 | . 155 . Terrain Rammed . | . . . Walls Destroyed . | . . . Machines Disabled . | . . . Actions | -11 -10 -9 --------- Run | Yrd Mat Mat Total 534 | 36 405 93 Wait 34 | . 11 23 Move 430 | 33 346 51 Hop . | . . . Pick Up 20 | 3 15 2 Fast Attach . | . . . Attach 9 | . 7 2 Detach . | . . . Swap 5 | . 5 . Drop 4 | . 4 . Fire 21 | . 17 4 Melee 11 | . . 11 Ram . | . . . Kick . | . . . Crush . | . . . Escape Stasis . | . . . Rewire . | . . . Trap . | . . . Miscellaneous . | . . . Route ------- -11/Scrapyard -10/Materials (discovered 2 exits: [*Mat] / [*Min]) -9/Materials History --------- Turn | Location | Event 13 | -11/Scrapyard | Discovered new exit (range 15) 21 | -11/Scrapyard | Entered Materials 164 | -10/Materials | Discovered new exit (range 11) 332 | -10/Materials | Build established: Mutant 728 | -10/Materials | Discovered new exit (range 7) 768 | -10/Materials | Entered another Materials area 768 | -9/Materials | Evolved 2 slots: Propulsion x2 893 | -9/Materials | Core integrity fell below 50% 905 | -9/Materials | Core integrity fell below 20% 912 | -9/Materials | Destroyed by Y-45 Defender with Beam Rifle Last Messages --------------- Critical hit (Burn: +37). R-06 Scavenger collects Aluminum Leg. G-34 Mercenary destroyed. Mining Laser destroyed. R-06 Scavenger collects Heat Sink. Critical hit (Burn: +37). G-47 Trooper knocked back. Wheel destroyed. G-47 Trooper knocked back. Lgt. Armor Plating destroyed. Matter Filter disabled. G-47 Trooper knocked back. G-34 Mercenary unfolds itself. Critical hit (Burn: +37). Destroyed Aluminum Leg. G-47 Trooper system corrupted by crushing effect. G-47 Trooper system terminally corrupted. Lgt. Nuclear Core fried. Wheel destroyed. Map ----- +----------------------------------------------------+ | ??????????????????????????????????????????? | | ??????????????????????????????????????????? | | ??????????????????????????????????????????? | | ??????????????????????????????????????????? | | ??????????????????????????????????????????? | | ??????????????????????????????????????????? | | ??????????????????????????????????????????? | | ??????????????????????????????????????????? | | ??????????????????????????????????????????? | | ??????????????????????????????????????????? | | ??????????????????????????????????????????? | | ?????????????????????????????????#+#??????? | | ????????????????????????????????? ??????? | | ????????????????????????????????? ??????? | | ????????????????????????????????? ??????? | | ????????????????????????????????? ??????? | | ?????????????????????????#####??? #??????? | | ????????????????????????? #??# #??????? | | ????????????????????# ?"""" #??# #??????? | | ????????????????????# """"" +?? #??????? | | ????????????????????# """"" #??# +??????? | | ????????????????????# """"" #??# #??????? | | ????????????????????# """"" g#??# #??????? | | ????????????????????#Y""""% #??# #??????? | | ????????????????????# """"" #### #??????? | | ????????????????????# gg@YY +"%" #??????? | | ????????# ######################??????? | | ???????? !%#?????????????????? | | ???????? #######???????????? | | ???????? """ #???????????? | | ???????????? "T" """ ##### #???????????? | | ??????????? """ ###"#+####????????? | | ?????????# """ # #????????? | | ?????????? # """ #????????? | | ?????????# # """ #????????? | | ?????????# """ """ # """ #????????? | | ??????? # """ """ + #????????? | | ???????" / """ """ # """ #????????? | | ?????????# # """ #????????? | | ??????????# # """ #????????? | | ??????????# """ = # #????????? | | ??????????? """ ! ##########????????? | | ??????????? """ ! #?????????????? | | ??????????# #?????????????? | | ??????????# #?????????????? | | ??????????#+##########+######?????????????? | | ??????????????????????????????????????????? | | ??????????????????????????????????????????? | | ??????????????????????????????????????????? | | ??????????????????????????????????????????? | +----------------------------------------------------+ Best States ------------- Heat Dissipation 28 Energy Generation 10 Energy Capacity 250 Matter Stores 270 Matter Capacity 300 Sight Range 16 Robot Scan Range 14 Terrain Scan Density 10 Armor Coverage 150 Evasion (%) 50 Recoil Reduction 2 Item Schematics ----------------- None Robot Schematics ------------------ None Fabricated ------------ Nothing Alien Tech Used ----------------- None Achievements -------------- Let's See Who's Tougher Challenges ------------ None Game ------ Seed NovaCannonMultitool Manual? 0 Play Time 00:14:51 Cumulative 1.2 hours Start 2024.03.30 @ 22:11:40 End 2024.03.31 @ 17:58:36 Sessions 5 Manual Loads 0 Difficulty Rogue Special Mode None Game No. 5 Rogue 5 Adventurer 0 Explorer 0 Win Type - Total 0 Types 0/0/0/0/0/0/0/0/0 Lore% 1 Gallery% 4 Achievement% 4 Wizard Run 0 Options --------- Layout 1 ASCII 0 Keyboard 0 Movement Mouse Keybinds 0 Fullscreen 1 Font 24/Smallcaps Map View 50x35 Zoom Use 0% Tactical HUD 0 Map Filters NONE Filters NONE Steam 1 RUN: 2f0fa0cc-46bf-4c67-90bd-0cbe237623ae